fUST/lending_fUST_20241201
["ID","MTS","AMOUNT","RATE_DAILY","PERIOD"]
[343914970,1733058645319,-500.0,0.00027671,3]
[343914971,1733058645329,-500.0,0.00027671,3]
[343914972,1733058645338,-500.0,0.00027671,3]
[343914973,1733058645348,-500.0,0.00027671,3]
[343914974,1733058645357,-500.0,0.00027671,3]
[343914975,1733058645367,-500.0,0.00027671,3]
[343914976,1733058645377,-503.69414773,0.00027671,3]
[343914977,1733058645387,-500.0,0.00027671,3]
[343914978,1733058645396,-500.0,0.00027671,3]
[343914979,1733058645406,-505.55848924,0.00027671,3]
[343914980,1733058645416,-500.0,0.00027671,3]
[343914981,1733058645425,-500.0,0.00027671,3]
[343914982,1733058645434,-500.0,0.00027671,3]
[343914983,1733058645444,-500.0,0.00027671,3]
[343914984,1733058645453,-500.0,0.00027671,3]
[343914985,1733058645462,-500.0,0.00027671,3]
[343914986,1733058645472,-500.0,0.00027671,3]
[343914987,1733058645481,-500.0,0.00027671,3]
[343914988,1733058645490,-500.0,0.00027671,3]
[343914989,1733058645499,-550.67841102,0.00027671,3]
[343914990,1733058645508,-500.0,0.00027671,3]
[343914991,1733058645517,-500.0,0.00027671,3]
[343914992,1733058645528,-504.03013506,0.00027671,3]
[343914993,1733058645538,-500.0,0.00027671,3]
[343914994,1733058645547,-500.0,0.00027671,3]
[343914995,1733058645557,-512.82419668,0.00027671,3]
[343914996,1733058645566,-500.0,0.00027671,3]
[343914997,1733058645576,-500.0,0.00027671,3]
[343914998,1733058645586,-500.0,0.00027671,3]
[343914999,1733058645595,-500.0,0.00027671,3]
[343915000,1733058645604,-500.0,0.00027671,3]
[343915001,1733058645614,-792.5,0.00027671,3]
[343915002,1733058645623,-353.98255533,0.00027671,3]
[343915003,1733058645633,-500.0,0.00027671,3]
[343915004,1733058645642,-534.34,0.00027671,3]
[343915005,1733058645651,-500.0,0.00027671,3]
[343915006,1733058645661,-500.0,0.00027671,3]
[343915007,1733058645671,-500.0,0.00027671,3]
[343915008,1733058645680,-500.0,0.00027671,3]
[343915009,1733058645690,-500.0,0.00027671,3]
[343915010,1733058645699,-531.95378692,0.00027671,3]
[343915011,1733058645709,-500.0,0.00027671,3]
[343915012,1733058645718,-500.0,0.00027671,3]
[343915013,1733058645727,-500.0,0.00027671,3]
[343915014,1733058645737,-500.0,0.00027671,3]
[343915015,1733058645745,-313.52652812,0.00027671,3]
[343915016,1733058645755,-500.0,0.00027671,3]
[343915017,1733058645838,-500.0,0.00027671,3]
[343915018,1733058645848,-500.0,0.00027671,3]
[343915019,1733058645858,-1500.0,0.00027671,2]
[343915020,1733058645867,-500.0,0.00027671,3]
[343915021,1733058645877,-500.0,0.00027671,3]
[343915022,1733058645887,-673.25,0.00027671,3]
[343915023,1733058645897,-500.0,0.00027671,3]
[343915024,1733058645907,-500.0,0.00027671,3]
[343915025,1733058645916,-500.0,0.00027671,3]
[343915026,1733058645926,-42362.14,0.00027671,3]
[343915027,1733058645935,-500.0,0.00027671,3]
[343915028,1733058645944,-415.05218331,0.00027671,3]
[343915029,1733058645954,-309.5398032,0.00027671,3]
[343915030,1733058645964,-500.0,0.00027671,3]
[343915031,1733058645975,-500.0,0.00027671,3]
[343915032,1733058645985,-500.0,0.00027671,3]
[343915033,1733058645995,-500.0,0.00027671,3]
[343915034,1733058646005,-500.0,0.00027671,3]
[343915035,1733058646015,-500.0,0.00027671,3]
[343915036,1733058646026,-500.0,0.00027671,3]
[343915037,1733058646037,-500.0,0.00027671,3]
[343915038,1733058646047,-500.0,0.00027671,3]
[343915039,1733058646056,-500.0,0.00027671,3]
[343915040,1733058646066,-500.0,0.00027671,3]
[343915041,1733058646076,-217.83638541,0.00027671,3]
[343915042,1733058646085,-500.0,0.00027671,3]
[343915043,1733058646095,-500.0,0.00027671,3]
[343915044,1733058646104,-478.85142975,0.00027671,3]
[343915045,1733058646115,-592.12,0.00027671,3]
[343915046,1733058646125,-500.0,0.00027671,3]
[343915047,1733058646134,-500.0,0.00027671,3]
[343915049,1733058646143,-500.0,0.00027671,3]
[343915050,1733058646152,-1267.84,0.00027671,3]
[343915051,1733058646162,-500.0,0.00027671,3]
[343915052,1733058646172,-589.66,0.00027671,3]
[343915053,1733058646181,-500.0,0.00027671,3]
[343915054,1733058646191,-500.0,0.00027671,3]
[343915055,1733058646200,-500.0,0.00027671,3]
[343915056,1733058646210,-500.0,0.00027671,3]
[343915057,1733058646219,-500.0,0.00027671,3]
[343915058,1733058646229,-500.0,0.00027671,3]
[343915059,1733058646238,-568.65,0.00027671,3]
[343915060,1733058646248,-500.0,0.00027671,3]
[343915061,1733058646257,-500.0,0.00027671,3]
[343915062,1733058646267,-500.0,0.00027671,3]
[343915063,1733058646276,-500.0,0.00027671,3]
[343915064,1733058646286,-500.0,0.00027671,3]
[343915065,1733058646296,-500.0,0.00027671,3]
[343915066,1733058646305,-500.0,0.00027671,3]
[343915068,1733058646314,-500.0,0.00027671,3]
[343915069,1733058646323,-495.08038886,0.00027671,3]
[343915070,1733058646332,-511.37935442,0.00027671,3]
[343915071,1733058646342,-500.0,0.00027671,3]
[343915072,1733058646351,-500.0,0.00027671,3]
[343915073,1733058646361,-500.0,0.00027671,3]
[343915074,1733058646371,-500.0,0.00027671,3]
[343915075,1733058646381,-500.0,0.00027671,3]
[343915076,1733058646391,-508.24,0.00027671,3]
[343915077,1733058646400,-500.0,0.00027671,3]
[343915078,1733058646410,-500.0,0.00027671,3]
[343915079,1733058646420,-511.24698668,0.00027671,3]
[343915080,1733058646430,-500.0,0.00027671,3]
[343915081,1733058646439,-500.0,0.00027671,3]
[343915082,1733058646449,-500.0,0.00027671,3]
[343915083,1733058646458,-500.0,0.00027671,3]
[343915084,1733058646468,-500.0,0.00027671,2]
[343915085,1733058646478,-500.0,0.00027671,3]
[343915086,1733058646488,-1257.5,0.000277,2]
[343915087,1733058646497,-886.24367263,0.0002773,2]
[343915089,1733058646506,-224.303159,0.000278,2]
[343915090,1733058646516,-3683.0,0.00027856,30]
[343915091,1733058646526,-152.657716,0.00027879,2]
[343915092,1733058646536,-479.75,0.000279,31]
[343915093,1733058646545,-479.75,0.000279,31]
[343915094,1733058646554,-479.75,0.000279,31]
[343915095,1733058646564,-479.75,0.000279,31]
[343915096,1733058646573,-479.75,0.000279,31]
[343915097,1733058646583,-479.75,0.000279,31]
[343915098,1733058646593,-479.75,0.000279,31]
[343915099,1733058646603,-479.75,0.000279,31]
[343915100,1733058646612,-479.75,0.000279,31]
[343915101,1733058646622,-479.75,0.000279,31]
[343915102,1733058646632,-479.75,0.000279,31]
[343915103,1733058646641,-479.75,0.000279,31]
[343915104,1733058646651,-500.0,0.00027945,3]
[343915106,1733058646661,-500.0,0.00027945,3]
[343915108,1733058646670,-500.0,0.00027945,3]
[343915109,1733058646680,-500.0,0.00027945,3]
[343915110,1733058646689,-500.0,0.00027945,3]
[343915111,1733058646699,-500.0,0.00027945,3]
[343915112,1733058646709,-500.0,0.00027945,3]
[343915113,1733058646718,-500.0,0.00027945,3]
[343915114,1733058646728,-500.0,0.00027945,3]
[343915115,1733058646737,-500.0,0.00027945,3]
[343915116,1733058646747,-500.0,0.00027945,3]
[343915117,1733058646757,-500.0,0.00027945,3]
[343915118,1733058646767,-500.0,0.00027945,3]
[343915119,1733058646778,-500.0,0.00027945,7]
[343915120,1733058646787,-500.0,0.00027945,3]
[343915121,1733058646797,-500.0,0.00027945,3]
[343915122,1733058646806,-500.0,0.00027945,3]
[343915123,1733058646815,-973.19,0.00027945,3]
[343915124,1733058646825,-500.0,0.00027945,3]
[343915125,1733058646835,-261.06,0.00027945,3]
[343915126,1733058646844,-506.0839576,0.00027945,3]
[343915127,1733058646853,-509.07163528,0.00027945,3]
[343915128,1733058646862,-850.06,0.00027945,3]
[343915129,1733058646872,-500.0,0.00027945,3]
[343915130,1733058646881,-645.54,0.00027945,3]
[343915131,1733058646890,-571.83,0.00027945,3]
[343915132,1733058646899,-500.0,0.00027945,3]
[343915133,1733058646909,-553.03465721,0.00027945,3]
[343915134,1733058646918,-500.0,0.00027945,3]
[343915135,1733058646927,-511.14548355,0.00027945,3]
[343915136,1733058646936,-500.0,0.00027945,3]
[343915137,1733058646946,-500.0,0.00027945,3]
[343915138,1733058646956,-500.0,0.00027945,3]
[343915139,1733058646965,-500.0,0.00027945,3]
[343915140,1733058646976,-500.0,0.00027945,3]
[343915141,1733058646985,-500.0,0.00027945,3]
[343915142,1733058646994,-151.62370256,0.00027945,3]
[343915143,1733058647004,-560.72,0.00027945,3]
[343915144,1733058647013,-500.0,0.00027945,3]
[343915145,1733058647022,-500.0,0.00027945,3]
[343915146,1733058647036,-500.0,0.00027945,3]
[343915147,1733058647046,-931.98,0.00027945,3]
[343915148,1733058647055,-500.0,0.00027945,3]
[343915149,1733058647064,-726.01,0.00027945,3]
[343915150,1733058647075,-500.0,0.00027945,3]
[343915151,1733058647084,-990.72,0.00027945,3]
[343915152,1733058647094,-500.0,0.00027945,3]
[343915153,1733058647103,-500.0,0.00027945,3]
[343915154,1733058647112,-500.0,0.00027945,3]
[343915155,1733058647122,-500.0,0.00027945,3]
[343915156,1733058647132,-506.91,0.00027945,3]
[343915157,1733058647141,-391.44362008,0.00027945,3]
[343915158,1733058647150,-500.0,0.00027945,3]
[343915159,1733058647159,-500.0,0.00027945,3]
[343915160,1733058647169,-500.0,0.00027945,3]
[343915161,1733058647178,-500.0,0.00027945,3]
[343915162,1733058647187,-500.0,0.00027945,3]
[343915163,1733058647196,-500.0,0.00027945,3]
[343915164,1733058647205,-1077.88,0.00027945,3]
[343915165,1733058647215,-200.0,0.00027945,3]
[343915166,1733058647224,-377.30885929,0.00027945,3]
[343915167,1733058647234,-500.0,0.00027945,3]
[343915168,1733058647243,-500.0,0.00027945,3]
[343915169,1733058647253,-500.0,0.00027945,3]
[343915170,1733058647262,-500.0,0.00027945,3]
[343915171,1733058647272,-612.64441132,0.00027945,3]
[343915172,1733058647284,-500.0,0.00027945,3]
[343915173,1733058647294,-500.0,0.00027945,3]
[343915174,1733058647304,-500.0,0.00027945,3]
[343915175,1733058647313,-500.0,0.00027945,3]
[343915176,1733058647323,-500.0,0.00027945,3]
[343915177,1733058647333,-500.0,0.00027945,3]
[343915178,1733058647343,-500.0,0.00027945,3]
[343915179,1733058647352,-500.0,0.00027945,3]
[343915180,1733058647362,-500.0,0.00027945,3]
[343915181,1733058647372,-500.0,0.00027945,3]
[343915182,1733058647382,-500.0,0.00027945,3]
[343915183,1733058647391,-500.0,0.00027945,3]
[343915184,1733058647401,-500.0,0.00027945,3]
[343915185,1733058647411,-500.0,0.00027945,3]
[343915186,1733058647420,-372.45158501,0.00027945,3]
[343915187,1733058647429,-500.0,0.00027945,3]
[343915188,1733058647439,-500.0,0.00027945,3]
[343915189,1733058647449,-500.0,0.00027945,3]
[343915190,1733058647458,-500.0,0.00027945,3]
[343915191,1733058647467,-640.40466267,0.00027945,3]
[343915192,1733058647477,-500.0,0.00027945,3]
[343915193,1733058647486,-792.5,0.00027945,3]
[343915194,1733058647496,-500.0,0.00027945,3]
[343915195,1733058647505,-534.34,0.00027945,3]
[343915196,1733058647590,-500.0,0.00027945,3]
[343915197,1733058647600,-500.0,0.00027945,3]
[343915198,1733058647610,-500.0,0.00027945,3]
[343915199,1733058647620,-508.70013023,0.00027945,3]
[343915200,1733058647629,-500.0,0.00027945,3]
[343915201,1733058647639,-354.213126,0.00027945,3]
[343915202,1733058647648,-534.10293613,0.00027945,3]
[343915203,1733058647657,-500.0,0.00027945,3]
[343915204,1733058647667,-500.0,0.00027945,3]
[343915205,1733058647677,-500.0,0.00027945,3]
[343915206,1733058647687,-500.0,0.00027945,3]
[343915207,1733058647696,-500.0,0.00027945,3]
[343915208,1733058647706,-1500.0,0.00027945,2]
[343915209,1733058647715,-500.0,0.00027945,3]
[343915210,1733058647724,-673.25,0.00027945,3]
[343915211,1733058647734,-500.0,0.00027945,3]
[343915212,1733058647744,-500.0,0.00027945,3]
[343915213,1733058647754,-324.84,0.00027945,3]
[343915214,1733058647763,-42362.14,0.00027945,3]
[343915215,1733058647773,-500.0,0.00027945,3]
[343915216,1733058647785,-500.0,0.00027945,3]
[343915217,1733058647794,-500.0,0.00027945,3]
[343915218,1733058647804,-500.0,0.00027945,3]
[343915219,1733058647814,-500.0,0.00027945,3]
[343915220,1733058647824,-500.0,0.00027945,3]
[343915221,1733058647834,-500.0,0.00027945,3]
[343915222,1733058647843,-500.0,0.00027945,3]
[343915223,1733058647853,-427.49693625,0.00027945,3]
[343915224,1733058647863,-500.0,0.00027945,3]
[343915225,1733058647874,-500.0,0.00027945,3]
[343915226,1733058647885,-500.0,0.00027945,3]
[343915227,1733058647894,-500.0,0.00027945,3]
[343915228,1733058647905,-592.12,0.00027945,3]
[343915229,1733058647914,-500.0,0.00027945,3]
[343915230,1733058647924,-500.0,0.00027945,3]
[343915231,1733058647934,-500.0,0.00027945,3]
[343915232,1733058647943,-1267.84,0.00027945,3]
[343915233,1733058647954,-500.0,0.00027945,3]
[343915234,1733058647964,-589.66,0.00027945,3]
[343915235,1733058647974,-500.0,0.00027945,3]
[343915236,1733058647984,-556.14730497,0.00027945,3]
[343915237,1733058647994,-500.0,0.00027945,3]
[343915238,1733058648003,-500.0,0.00027945,3]
[343915239,1733058648013,-500.0,0.00027945,3]
[343915240,1733058648023,-500.0,0.00027945,3]
[343915241,1733058648034,-500.0,0.00027945,3]
[343915242,1733058648047,-568.65,0.00027945,3]
[343915243,1733058648057,-150.2,0.00027945,7]
[343915244,1733058648066,-500.0,0.00027945,3]
[343915245,1733058648077,-150.2,0.00027945,7]
[343915246,1733058648087,-583.97681712,0.00027945,3]
[343915247,1733058648096,-302.61485444,0.00027945,3]
[343915248,1733058648106,-500.0,0.00027945,3]
[343915249,1733058648117,-500.0,0.00027945,3]
[343915250,1733058648127,-500.0,0.00027945,3]
[343915251,1733058648137,-500.0,0.00027945,3]
[343915252,1733058648147,-500.0,0.00027945,3]
[343915253,1733058648157,-500.0,0.00027945,3]
[343915254,1733058648167,-641.62638344,0.00027945,3]
[343915255,1733058648177,-500.0,0.00027945,3]
[343915256,1733058648186,-500.0,0.00027945,3]
[343915257,1733058648196,-508.24,0.00027945,3]
[343915258,1733058648206,-500.0,0.00027945,3]
[343915259,1733058648216,-500.0,0.00027945,3]
[343915260,1733058648226,-503.51497263,0.00027945,3]
[343915261,1733058648236,-180.36,0.00027945,3]
[343915262,1733058648246,-500.0,0.00027945,3]
[343915263,1733058648255,-500.0,0.00027945,3]
[343915264,1733058648265,-500.0,0.00027945,2]
[343915265,1733058648275,-500.0,0.00027945,3]
[343915266,1733058648286,-400.292894,0.00027952,2]
[343915267,1733058648296,-250.610952,0.00027952,2]
[343915268,1733058648305,-153.575459,0.00027952,2]
[343915269,1733058648315,-172.095175,0.00027952,2]
[343915270,1733058648326,-187.442689,0.00027952,2]
[343915271,1733058648336,-500.0,0.00027973,5]
[343915272,1733058648346,-32876.56895013,0.00028,10]
[343915273,1733058648357,-1032.33437584,0.00028,7]
[343915274,1733058648368,-2200.0,0.00028,120]
[343915275,1733058648378,-5411.0793222,0.00028,2]
[343915276,1733058648389,-244.252344,0.00028107,2]
[343915277,1733058648400,-576.92177034,0.00028119,2]
[343915278,1733058648410,-1035.17314491,0.00028119,2]
[343915279,1733058648420,-886.24367263,0.00028162,2]
[343915280,1733058648430,-500.0,0.00028219,7]
[343915281,1733058648440,-150.2,0.00028219,7]
[343915282,1733058648450,-150.2,0.00028219,7]
[343915283,1733058648460,-194.20138953,0.00028219,3]
[343915284,1733058648471,-500.0,0.00028219,3]
[343915285,1733058648481,-500.0,0.00028219,3]
[343915286,1733058648491,-376.36069322,0.00028219,3]
[343915287,1733058648502,-500.0,0.00028219,3]
[343915288,1733058648512,-500.0,0.00028219,3]
[343915289,1733058648521,-500.0,0.00028219,3]
[343915290,1733058648532,-500.0,0.00028219,3]
[343915291,1733058648542,-158.78490843,0.00028219,3]
[343915292,1733058648553,-592.51508782,0.00028219,3]
[343915293,1733058648563,-511.43385146,0.00028219,3]
[343915294,1733058648574,-500.0,0.00028219,3]
[343915295,1733058648585,-500.0,0.00028219,3]
[343915296,1733058648602,-447.47630248,0.00028219,3]
[343915297,1733058648612,-500.0,0.00028219,3]
[343915298,1733058648622,-973.19,0.00028219,3]
[343915299,1733058648632,-500.0,0.00028219,3]
[343915300,1733058648642,-850.06,0.00028219,3]
[343915301,1733058648652,-500.0,0.00028219,3]
[343915302,1733058648662,-571.83,0.00028219,3]
[343915303,1733058648672,-500.0,0.00028219,3]
[343915304,1733058648683,-500.0,0.00028219,3]
[343915305,1733058648693,-500.0,0.00028219,3]
[343915306,1733058648703,-558.97610518,0.00028219,3]
[343915307,1733058648713,-500.0,0.00028219,3]
[343915308,1733058648723,-500.0,0.00028219,3]
[343915309,1733058648733,-500.0,0.00028219,3]
[343915310,1733058648742,-500.0,0.00028219,3]
[343915311,1733058648752,-560.72,0.00028219,3]
[343915312,1733058648762,-500.0,0.00028219,3]
[343915313,1733058648772,-500.0,0.00028219,3]
[343915314,1733058648783,-500.0,0.00028219,3]
[343915315,1733058648793,-931.98,0.00028219,3]
[343915316,1733058648802,-500.0,0.00028219,3]
[343915317,1733058648812,-726.01,0.00028219,3]
[343915318,1733058648822,-500.0,0.00028219,3]
[343915319,1733058648832,-990.72,0.00028219,3]
[343915320,1733058648842,-500.0,0.00028219,3]
[343915321,1733058648852,-536.76218759,0.00028219,3]
[343915322,1733058648862,-260.86581305,0.00028219,3]
[343915323,1733058648872,-517.21194976,0.00028219,3]
[343915324,1733058648882,-506.91,0.00028219,3]
[343915325,1733058648892,-500.0,0.00028219,3]
[343915326,1733058648903,-500.0,0.00028219,3]
[343915327,1733058648913,-500.0,0.00028219,3]
[343915328,1733058648924,-500.0,0.00028219,3]
[343915329,1733058648934,-500.0,0.00028219,3]
[343915330,1733058648944,-500.0,0.00028219,3]
[343915331,1733058648954,-1077.88,0.00028219,3]
[343915332,1733058648964,-200.0,0.00028219,3]
[343915333,1733058648974,-500.0,0.00028219,3]
[343915334,1733058648984,-500.0,0.00028219,3]
[343915335,1733058648994,-500.0,0.00028219,3]
[343915336,1733058649005,-500.0,0.00028219,3]
[343915337,1733058649015,-500.0,0.00028219,3]
[343915338,1733058649024,-500.0,0.00028219,3]
[343915339,1733058649042,-500.0,0.00028219,3]
[343915340,1733058649051,-500.0,0.00028219,3]
[343915341,1733058649061,-500.0,0.00028219,3]
[343915342,1733058649071,-500.0,0.00028219,3]
[343915343,1733058649081,-500.0,0.00028219,3]
[343915344,1733058649091,-500.0,0.00028219,3]
[343915345,1733058649101,-500.0,0.00028219,3]
[343915346,1733058649111,-500.0,0.00028219,3]
[343915347,1733058649121,-500.0,0.00028219,3]
[343915348,1733058649130,-500.0,0.00028219,3]
[343915349,1733058649141,-500.0,0.00028219,3]
[343915350,1733058649151,-500.0,0.00028219,3]
[343915351,1733058649160,-537.27596618,0.00028219,3]
[343915352,1733058649170,-500.0,0.00028219,3]
[343915353,1733058649179,-500.0,0.00028219,3]
[343915354,1733058649188,-500.0,0.00028219,3]
[343915355,1733058649198,-792.5,0.00028219,3]
[343915356,1733058649279,-500.0,0.00028219,3]
[343915357,1733058649290,-534.34,0.00028219,3]
[343915358,1733058649300,-400.21029687,0.00028219,3]
[343915359,1733058649311,-500.0,0.00028219,3]
[343915360,1733058649322,-500.0,0.00028219,3]
[343915361,1733058649332,-255.71419845,0.00028219,3]
[343915362,1733058649342,-527.38189329,0.00028219,3]
[343915363,1733058649351,-500.0,0.00028219,3]
[343915364,1733058649361,-500.0,0.00028219,3]
[343915365,1733058649370,-500.0,0.00028219,3]
[343915366,1733058649380,-500.0,0.00028219,3]
[343915367,1733058649389,-269.65590198,0.00028219,2]
[343915368,1733058649398,-500.0,0.00028219,3]
[343915369,1733058649408,-673.25,0.00028219,3]
[343915370,1733058649417,-500.0,0.00028219,3]
[343915371,1733058649427,-500.0,0.00028219,3]
[343915372,1733058649436,-42362.14,0.00028219,3]
[343915373,1733058649446,-527.07742387,0.00028219,3]
[343915374,1733058649455,-500.0,0.00028219,3]
[343915375,1733058649464,-500.0,0.00028219,3]
[343915376,1733058649474,-151.0,0.00028219,7]
[343915377,1733058649483,-437.54264176,0.00028219,3]
[343915378,1733058649494,-500.0,0.00028219,3]
[343915379,1733058649503,-500.0,0.00028219,3]
[343915380,1733058649513,-500.0,0.00028219,3]
[343915381,1733058649522,-500.0,0.00028219,3]
[343915382,1733058649534,-507.05250547,0.00028219,3]
[343915383,1733058649544,-500.0,0.00028219,3]
[343915384,1733058649553,-500.0,0.00028219,3]
[343915385,1733058649563,-592.12,0.00028219,3]
[343915386,1733058649573,-500.0,0.00028219,3]
[343915387,1733058649582,-500.0,0.00028219,3]
[343915388,1733058649591,-499.992344,0.00028219,3]
[343915389,1733058649601,-1267.84,0.00028219,3]
[343915390,1733058649610,-500.0,0.00028219,3]
[343915391,1733058649620,-589.66,0.00028219,3]
[343915392,1733058649630,-171.8462511,0.00028219,3]
[343915393,1733058649639,-514.98818935,0.00028219,3]
[343915394,1733058649648,-418.79465825,0.00028219,3]
[343915395,1733058649658,-500.0,0.00028219,3]
[343915396,1733058649668,-500.0,0.00028219,3]
[343915397,1733058649677,-500.0,0.00028219,3]
[343915398,1733058649687,-568.65,0.00028219,3]
[343915399,1733058649697,-500.0,0.00028219,3]
[343915400,1733058649707,-362.48236748,0.00028219,3]
[343915401,1733058649716,-500.0,0.00028219,3]
[343915402,1733058649726,-500.0,0.00028219,3]
[343915403,1733058649736,-643.06880688,0.00028219,3]
[343915404,1733058649746,-500.0,0.00028219,3]
[343915405,1733058649756,-500.0,0.00028219,3]
[343915406,1733058649765,-500.0,0.00028219,3]
[343915407,1733058649775,-569.75287456,0.00028219,3]
[343915408,1733058649785,-508.24,0.00028219,3]
[343915409,1733058649795,-500.0,0.00028219,3]
[343915410,1733058649804,-500.0,0.00028219,3]
[343915411,1733058649814,-500.0,0.00028219,3]
[343915412,1733058649823,-500.0,0.00028219,3]
[343915413,1733058649832,-500.0,0.00028219,2]
[343915414,1733058649842,-500.0,0.00028219,3]
[343915415,1733058649851,-2500.0,0.00028256,3]
[343915416,1733058649860,-2500.0,0.00028265,3]
[343915417,1733058649870,-400.292894,0.00028301,2]
[343915418,1733058649880,-250.610952,0.00028301,2]
[343915419,1733058649891,-152.657715,0.00028336,2]
[343915420,1733058649901,-152.657716,0.00028336,2]
[343915421,1733058649911,-443.8,0.00028344,15]
[343915422,1733058649921,-1035.1731449,0.00028364,2]
[343915423,1733058649931,-500.0,0.00028377,3]
[343915424,1733058649941,-153.575459,0.00028418,2]
[343915425,1733058649950,-244.252344,0.0002845,2]
[343915426,1733058649960,-501.46263338,0.00028493,7]
[343915427,1733058649970,-150.2,0.00028493,7]
[343915428,1733058649980,-230.43858348,0.00028493,7]
[343915429,1733058649990,-500.0,0.00028493,3]
[343915430,1733058650003,-500.0,0.00028493,3]
[343915431,1733058650018,-503.45166271,0.00028493,3]
[343915432,1733058650037,-325.97560899,0.00028493,3]
[343915433,1733058650048,-500.0,0.00028493,3]
[343915434,1733058650063,-500.0,0.00028493,3]
[343915435,1733058650076,-500.0,0.00028493,3]
[343915436,1733058650091,-500.0,0.00028493,3]
[343915437,1733058650105,-165.34,0.00028493,3]
[343915438,1733058650120,-973.19,0.00028493,3]
[343915439,1733058650134,-500.0,0.00028493,3]
[343915440,1733058650147,-850.06,0.00028493,3]
[343915441,1733058650161,-571.83,0.00028493,3]
[343915442,1733058650173,-500.0,0.00028493,3]
[343915443,1733058650188,-500.0,0.00028493,3]
[343915444,1733058650201,-500.0,0.00028493,3]
[343915445,1733058650213,-500.0,0.00028493,3]
[343915446,1733058650227,-500.0,0.00028493,3]
[343915447,1733058650240,-328.31359227,0.00028493,3]
[343915448,1733058650255,-500.0,0.00028493,3]
[343915449,1733058650270,-560.72,0.00028493,3]
[343915450,1733058650283,-500.0,0.00028493,3]
[343915451,1733058650298,-500.0,0.00028493,3]
[343915452,1733058650312,-500.0,0.00028493,3]
[343915453,1733058650327,-931.98,0.00028493,3]
[343915454,1733058650338,-154.77668039,0.00028493,3]
[343915455,1733058650348,-726.01,0.00028493,3]
[343915456,1733058650359,-459.38534077,0.00028493,3]
[343915457,1733058650373,-990.72,0.00028493,3]
[343915458,1733058650388,-500.0,0.00028493,3]
[343915459,1733058650400,-506.91,0.00028493,3]
[343915460,1733058650411,-500.0,0.00028493,3]
[343915461,1733058650423,-500.0,0.00028493,3]
[343915462,1733058650436,-500.0,0.00028493,3]
[343915463,1733058650446,-500.0,0.00028493,3]
[343915464,1733058650457,-500.0,0.00028493,3]
[343915465,1733058650468,-500.0,0.00028493,3]
[343915466,1733058650480,-1077.88,0.00028493,3]
[343915467,1733058650492,-200.0,0.00028493,3]
[343915468,1733058650504,-500.0,0.00028493,3]
[343915469,1733058650516,-500.0,0.00028493,3]
[343915470,1733058650528,-500.0,0.00028493,3]
[343915471,1733058650540,-500.0,0.00028493,3]
[343915472,1733058650552,-500.0,0.00028493,3]
[343915473,1733058650563,-500.0,0.00028493,3]
[343915474,1733058650575,-500.0,0.00028493,3]